[Event "Late-Titled-Tuesday-Blitz-April-23-2024"]
[Site "Chess.com"]
[Date "2024.04.23"]
[Round "3"]
[White "Harsha_Bharathakoti"]
[Black "ACollins05"]
[Result "1-0"]
[WhiteElo "2908"]
[BlackElo "2528"]
[TimeControl "180+1"]
[EndTime "14:29:13 PDT"]
[Termination "Harsha_Bharathakoti won by checkmate"]

1. c4 {[%clk 0:02:54.1]} 1... e6 {[%clk 0:02:58.7]} 2. Nf3 {[%clk 0:02:54]} 2...
d5 {[%clk 0:02:59]} 3. g3 {[%clk 0:02:54]} 3... Nf6 {[%clk 0:02:58.6]} 4. Bg2
{[%clk 0:02:54.3]} 4... dxc4 {[%clk 0:02:59.2]} 5. Qa4+ {[%clk 0:02:54.3]} 5...
Nbd7 {[%clk 0:02:58.6]} 6. Qxc4 {[%clk 0:02:54.5]} 6... c5 {[%clk 0:02:59.3]} 7.
Nc3 {[%clk 0:02:49.3]} 7... b6 {[%clk 0:02:58.7]} 8. a4 {[%clk 0:02:40.6]} 8...
a6 {[%clk 0:02:50.3]} 9. O-O {[%clk 0:02:39.3]} 9... Bb7 {[%clk 0:02:50.4]} 10.
Rd1 {[%clk 0:02:39]} 10... Be7 {[%clk 0:02:47.7]} 11. d3 {[%clk 0:02:30.6]}
11... O-O {[%clk 0:02:47.2]} 12. Bf4 {[%clk 0:02:30.8]} 12... Nd5 {[%clk
0:02:45.1]} 13. Bd2 {[%clk 0:02:30]} 13... Nxc3 {[%clk 0:02:41.9]} 14. bxc3
{[%clk 0:02:29.1]} 14... Bxf3 {[%clk 0:02:36]} 15. exf3 {[%clk 0:02:16.3]} 15...
Ra7 {[%clk 0:02:22.9]} 16. f4 {[%clk 0:02:14.4]} 16... Nf6 {[%clk 0:02:21.8]}
17. Rab1 {[%clk 0:02:12.9]} 17... Nd5 {[%clk 0:02:21.3]} 18. Qb3 {[%clk
0:02:09.9]} 18... Bf6 {[%clk 0:01:58.6]} 19. Bxd5 {[%clk 0:02:05.7]} 19... Qxd5
{[%clk 0:01:59.5]} 20. Qxd5 {[%clk 0:02:05.9]} 20... exd5 {[%clk 0:01:58.8]} 21.
Rxb6 {[%clk 0:02:06.5]} 21... Re8 {[%clk 0:01:57.1]} 22. Kf1 {[%clk 0:02:04.6]}
22... Rae7 {[%clk 0:01:57.1]} 23. Rxa6 {[%clk 0:02:03.6]} 23... h5 {[%clk
0:01:51.2]} 24. h3 {[%clk 0:02:00.2]} 24... Rb7 {[%clk 0:01:50.6]} 25. Rc6
{[%clk 0:01:55.6]} 25... c4 {[%clk 0:01:45.3]} 26. dxc4 {[%clk 0:01:55.4]} 26...
dxc4 {[%clk 0:01:46.2]} 27. Rxc4 {[%clk 0:01:55.9]} 27... Rb2 {[%clk 0:01:45.6]}
28. Be3 {[%clk 0:01:49.7]} 28... h4 {[%clk 0:01:42]} 29. g4 {[%clk 0:01:48.9]}
29... Rc2 {[%clk 0:01:42]} 30. g5 {[%clk 0:01:45.9]} 30... Rxc3 {[%clk
0:01:37.2]} 31. Rxc3 {[%clk 0:01:45.3]} 31... Bxc3 {[%clk 0:01:38.1]} 32. Rc1
{[%clk 0:01:43.2]} 32... Ba5 {[%clk 0:01:30.5]} 33. Rc5 {[%clk 0:01:39.8]} 33...
Ra8 {[%clk 0:01:28.9]} 34. Rc4 {[%clk 0:01:34.6]} 34... Kf8 {[%clk 0:01:25.4]}
35. Ke2 {[%clk 0:01:31.8]} 35... g6 {[%clk 0:01:25.6]} 36. Kf3 {[%clk
0:01:32.3]} 36... Ke7 {[%clk 0:01:25]} 37. Kg4 {[%clk 0:01:32.1]} 37... Rh8
{[%clk 0:01:21.6]} 38. Rc5 {[%clk 0:01:30.6]} 38... Ra8 {[%clk 0:01:20.8]} 39.
Kxh4 {[%clk 0:01:25]} 39... Bb4 {[%clk 0:01:20.5]} 40. Rc4 {[%clk 0:01:21.3]}
40... Bd6 {[%clk 0:01:18.7]} 41. Kg4 {[%clk 0:01:21.5]} 41... Ke6 {[%clk
0:01:18]} 42. h4 {[%clk 0:01:22.1]} 42... Kd5 {[%clk 0:01:17.5]} 43. Rd4+ {[%clk
0:01:22.7]} 43... Ke6 {[%clk 0:01:17.3]} 44. h5 {[%clk 0:01:13.2]} 44... gxh5+
{[%clk 0:01:16.8]} 45. Kxh5 {[%clk 0:01:14.1]} 45... Rh8+ {[%clk 0:01:10.3]} 46.
Kg4 {[%clk 0:01:13.9]} 46... Rh1 {[%clk 0:01:11.2]} 47. Rc4 {[%clk 0:01:04]}
47... Kd5 {[%clk 0:01:10.2]} 48. Rc8 {[%clk 0:01:03.4]} 48... Ra1 {[%clk
0:01:08.9]} 49. Ra8 {[%clk 0:01:03.2]} 49... Bb4 {[%clk 0:01:04.4]} 50. Kf5
{[%clk 0:01:02.2]} 50... Bc3 {[%clk 0:01:02.3]} 51. Ra7 {[%clk 0:01:02]} 51...
Ra2 {[%clk 0:00:56.1]} 52. Bb6 {[%clk 0:00:59.4]} 52... Kc6 {[%clk 0:00:52.3]}
53. a5 {[%clk 0:00:59.7]} 53... Be1 {[%clk 0:00:45.3]} 54. Rxf7 {[%clk
0:00:59.5]} 54... Bxa5 {[%clk 0:00:44.8]} 55. Bxa5 {[%clk 0:00:59.4]} 55...
Rxa5+ {[%clk 0:00:45.7]} 56. Kf6 {[%clk 0:00:59.3]} 56... Kd6 {[%clk 0:00:46.1]}
57. g6 {[%clk 0:00:59.6]} 57... Ra1 {[%clk 0:00:45.2]} 58. g7 {[%clk 0:00:59.8]}
58... Rg1 {[%clk 0:00:45.8]} 59. Rf8 {[%clk 0:01:00.3]} 59... Rg4 {[%clk
0:00:45]} 60. f5 {[%clk 0:01:00.3]} 60... Kd7 {[%clk 0:00:44.1]} 61. g8=Q {[%clk
0:01:00.7]} 61... Re4 {[%clk 0:00:43.9]} 62. Qe6+ {[%clk 0:01:00.7]} 62... Rxe6+
{[%clk 0:00:41.5]} 63. fxe6+ {[%clk 0:01:01.6]} 63... Kd6 {[%clk 0:00:42.2]} 64.
Rd8+ {[%clk 0:01:02]} 64... Kc6 {[%clk 0:00:43.1]} 65. e7 {[%clk 0:01:02.9]}
65... Kc7 {[%clk 0:00:43.5]} 66. Ke6 {[%clk 0:01:03.8]} 66... Kc6 {[%clk
0:00:44.2]} 67. f4 {[%clk 0:01:04.7]} 67... Kb6 {[%clk 0:00:45]} 68. f5 {[%clk
0:01:05.6]} 68... Kc6 {[%clk 0:00:45.6]} 69. f6 {[%clk 0:01:06.5]} 69... Kb6
{[%clk 0:00:46.5]} 70. f7 {[%clk 0:01:07.4]} 70... Kb7 {[%clk 0:00:47.3]} 71.
f8=Q {[%clk 0:01:08.3]} 71... Kb6 {[%clk 0:00:48.2]} 72. Qe8 {[%clk 0:01:09.1]}
72... Kb7 {[%clk 0:00:49.1]} 73. Qd7+ {[%clk 0:01:10]} 73... Kb6 {[%clk
0:00:49.7]} 74. Rc8 {[%clk 0:01:09.6]} 74... Ka5 {[%clk 0:00:49.3]} 75. Qb7
{[%clk 0:01:09.7]} 75... Ka4 {[%clk 0:00:49.9]} 76. Ra8# {[%clk 0:01:10.5]} 1-0

[Event "Late-Titled-Tuesday-Blitz-April-23-2024"]
[Site "Chess.com"]
[Date "2024.04.23"]
[Round "3"]
[White "CarlosjPineror"]
[Black "TigrVShlyape"]
[Result "1/2-1/2"]
[WhiteElo "2774"]
[BlackElo "3023"]
[TimeControl "180+1"]
[EndTime "14:29:20 PDT"]
[Termination "Game drawn by repetition"]

1. e4 {[%clk 0:03:00.9]} 1... c5 {[%clk 0:02:52.9]} 2. Ne2 {[%clk 0:03:01.3]}
2... e6 {[%clk 0:02:51.7]} 3. g3 {[%clk 0:03:01.8]} 3... b5 {[%clk 0:02:48.2]}
4. Bg2 {[%clk 0:03:01.6]} 4... Bb7 {[%clk 0:02:48.8]} 5. O-O {[%clk 0:03:02]}
5... Nf6 {[%clk 0:02:47.8]} 6. d3 {[%clk 0:02:55.3]} 6... d6 {[%clk 0:02:33.1]}
7. a4 {[%clk 0:02:39.5]} 7... b4 {[%clk 0:02:32.7]} 8. Nbc3 {[%clk 0:02:40.1]}
8... bxc3 {[%clk 0:02:31.2]} 9. bxc3 {[%clk 0:02:32]} 9... e5 {[%clk 0:02:19.2]}
10. h3 {[%clk 0:02:30.9]} 10... Nbd7 {[%clk 0:02:17.2]} 11. c4 {[%clk
0:02:31.2]} 11... Be7 {[%clk 0:02:16.5]} 12. f4 {[%clk 0:02:31.8]} 12... h5
{[%clk 0:02:06.8]} 13. Be3 {[%clk 0:02:29.5]} 13... Bc6 {[%clk 0:02:01.1]} 14.
a5 {[%clk 0:02:25.9]} 14... Rb8 {[%clk 0:01:59.1]} 15. Qe1 {[%clk 0:02:17.5]}
15... Nf8 {[%clk 0:01:55]} 16. Ra2 {[%clk 0:02:11.5]} 16... Ne6 {[%clk
0:01:52.9]} 17. c3 {[%clk 0:02:09.9]} 17... Qc7 {[%clk 0:01:45.2]} 18. f5 {[%clk
0:02:09]} 18... Nf8 {[%clk 0:01:43.7]} 19. Qd2 {[%clk 0:01:58.4]} 19... N8d7
{[%clk 0:01:42]} 20. Bf3 {[%clk 0:01:55.7]} 20... Qd8 {[%clk 0:01:26.8]} 21. Kg2
{[%clk 0:01:54.1]} 21... h4 {[%clk 0:01:26.5]} 22. g4 {[%clk 0:01:47.7]} 22...
Nh7 {[%clk 0:01:26.5]} 23. Qc2 {[%clk 0:01:46.4]} 23... Bg5 {[%clk 0:01:24.8]}
24. Bf2 {[%clk 0:01:43.4]} 24... O-O {[%clk 0:01:24.3]} 25. d4 {[%clk
0:01:40.5]} 25... cxd4 {[%clk 0:01:18.8]} 26. cxd4 {[%clk 0:01:40.4]} 26... exd4
{[%clk 0:01:18.5]} 27. Nxd4 {[%clk 0:01:37.8]} 27... Ne5 {[%clk 0:01:18.1]} 28.
Nxc6 {[%clk 0:01:34.6]} 28... Nxc6 {[%clk 0:01:17.7]} 29. Rb1 {[%clk 0:01:32.4]}
29... Nb4 {[%clk 0:01:16.2]} 30. Rxb4 {[%clk 0:01:27.7]} 30... Rxb4 {[%clk
0:01:15.9]} 31. Bxa7 {[%clk 0:01:28.6]} 31... Qe7 {[%clk 0:01:09.6]} 32. Bf2
{[%clk 0:01:28]} 32... Bf6 {[%clk 0:00:59.6]} 33. a6 {[%clk 0:01:20.8]} 33...
Be5 {[%clk 0:00:57.8]} 34. c5 {[%clk 0:01:17.9]} 34... Ng5 {[%clk 0:00:34.4]}
35. c6 {[%clk 0:01:15.6]} 35... Nxf3 {[%clk 0:00:31.9]} 36. Kxf3 {[%clk
0:01:16.5]} 36... Qc7 {[%clk 0:00:29.2]} 37. a7 {[%clk 0:01:16.6]} 37... Ra8
{[%clk 0:00:28.8]} 38. Ra6 {[%clk 0:01:07]} 38... Bd4 {[%clk 0:00:26.3]} 39.
Bxd4 {[%clk 0:01:03.4]} 39... Rxd4 {[%clk 0:00:26.4]} 40. Qc3 {[%clk 0:01:04.3]}
40... Rd1 {[%clk 0:00:22.2]} 41. Qb3 {[%clk 0:01:03.9]} 41... d5 {[%clk
0:00:15.8]} 42. Qxd1 {[%clk 0:01:00.7]} 42... Qg3+ {[%clk 0:00:15.8]} 43. Ke2
{[%clk 0:00:57.9]} 43... Qg2+ {[%clk 0:00:15.8]} 44. Ke3 {[%clk 0:00:52.7]}
44... Qxe4+ {[%clk 0:00:15.3]} 45. Kf2 {[%clk 0:00:53.3]} 45... Qf4+ {[%clk
0:00:13.5]} 46. Qf3 {[%clk 0:00:52.6]} 46... Qc4 {[%clk 0:00:13.3]} 47. Qe2
{[%clk 0:00:52.5]} 47... Qf4+ {[%clk 0:00:08.6]} 48. Qf3 {[%clk 0:00:51.7]}
48... Qc4 {[%clk 0:00:07.6]} 49. Qe2 {[%clk 0:00:52.2]} 49... Qf4+ {[%clk
0:00:07.8]} 50. Qf3 {[%clk 0:00:52.5]} 1/2-1/2

[Event "Late-Titled-Tuesday-Blitz-April-23-2024"]
[Site "Chess.com"]
[Date "2024.04.23"]
[Round "3"]
[White "Orest_Vovk"]
[Black "chess_sharparchitect"]
[Result "1-0"]
[WhiteElo "2556"]
[BlackElo "2244"]
[TimeControl "180+1"]
[EndTime "14:29:21 PDT"]
[Termination "Orest_Vovk won by resignation"]

1. h4 {[%clk 0:02:56.6]} 1... d5 {[%clk 0:02:58.6]} 2. h5 {[%clk 0:02:54.7]}
2... e5 {[%clk 0:02:55.4]} 3. h6 {[%clk 0:02:54.3]} 3... Nxh6 {[%clk 0:02:55.3]}
4. d4 {[%clk 0:02:54.2]} 4... Nc6 {[%clk 0:02:47.6]} 5. Bxh6 {[%clk 0:02:53.7]}
5... gxh6 {[%clk 0:02:47.4]} 6. dxe5 {[%clk 0:02:54]} 6... Nxe5 {[%clk
0:02:47.4]} 7. Nf3 {[%clk 0:02:54]} 7... Nxf3+ {[%clk 0:02:43.8]} 8. gxf3 {[%clk
0:02:53.9]} 8... Bg7 {[%clk 0:02:42]} 9. Nc3 {[%clk 0:02:54]} 9... d4 {[%clk
0:02:36.7]} 10. Ne4 {[%clk 0:02:50]} 10... f5 {[%clk 0:02:32.9]} 11. Ng3 {[%clk
0:02:42.7]} 11... Be6 {[%clk 0:02:29.5]} 12. Nh5 {[%clk 0:02:40.4]} 12... Bf6
{[%clk 0:01:56.8]} 13. Nxf6+ {[%clk 0:02:39.5]} 13... Qxf6 {[%clk 0:01:56.9]}
14. Qd2 {[%clk 0:02:38.6]} 14... O-O-O {[%clk 0:01:54.5]} 15. Rxh6 {[%clk
0:02:36.1]} 15... Qe7 {[%clk 0:01:45]} 16. O-O-O {[%clk 0:02:15.4]} 16... Rd6
{[%clk 0:01:35.1]} 17. Bh3 {[%clk 0:02:04.5]} 17... Kb8 {[%clk 0:01:32.2]} 18.
Qf4 {[%clk 0:01:55.8]} 18... Rf8 {[%clk 0:01:25.8]} 19. Qh4 {[%clk 0:01:38.3]}
19... Qd7 {[%clk 0:01:11.5]} 20. Rxh7 {[%clk 0:01:36.1]} 20... Qa4 {[%clk
0:01:12]} 21. Rh8 {[%clk 0:01:27.1]} 21... Rc8 {[%clk 0:00:52.4]} 22. Rxc8+
{[%clk 0:01:07.2]} 22... Bxc8 {[%clk 0:00:52]} 23. a3 {[%clk 0:01:02.4]} 23...
b5 {[%clk 0:00:39.7]} 24. Qh8 {[%clk 0:00:54.8]} 24... Rd5 {[%clk 0:00:28.8]}
25. e4 {[%clk 0:00:35.4]} 25... Rc5 {[%clk 0:00:26]} 26. Rd2 {[%clk 0:00:35.5]}
26... d3 {[%clk 0:00:20.3]} 27. c3 {[%clk 0:00:27.4]} 27... b4 {[%clk
0:00:18.5]} 28. Bxf5 {[%clk 0:00:20.5]} 28... Rxf5 {[%clk 0:00:18.5]} 29. exf5
{[%clk 0:00:17.7]} 29... bxa3 {[%clk 0:00:18.5]} 30. bxa3 {[%clk 0:00:15]} 30...
Qxa3+ {[%clk 0:00:17.6]} 31. Rb2+ {[%clk 0:00:15]} 1-0

[Event "Late-Titled-Tuesday-Blitz-April-23-2024"]
[Site "Chess.com"]
[Date "2024.04.23"]
[Round "3"]
[White "wild3000"]
[Black "Janh4"]
[Result "0-1"]
[WhiteElo "2419"]
[BlackElo "2213"]
[TimeControl "180+1"]
[EndTime "14:29:22 PDT"]
[Termination "Janh4 won by checkmate"]

1. d4 {[%clk 0:02:44.1]} 1... d5 {[%clk 0:02:59.3]} 2. g3 {[%clk 0:02:44.4]}
2... Nf6 {[%clk 0:02:59]} 3. Bg2 {[%clk 0:02:45.3]} 3... e6 {[%clk 0:02:59.5]}
4. Nf3 {[%clk 0:02:46.1]} 4... Be7 {[%clk 0:03:00.1]} 5. O-O {[%clk 0:02:46.7]}
5... O-O {[%clk 0:03:00.4]} 6. b3 {[%clk 0:02:47.6]} 6... b6 {[%clk 0:03:00.1]}
7. Bb2 {[%clk 0:02:48.5]} 7... Bb7 {[%clk 0:03:00.7]} 8. e3 {[%clk 0:02:47.8]}
8... Nbd7 {[%clk 0:03:00.9]} 9. c4 {[%clk 0:02:47.5]} 9... c5 {[%clk 0:03:00.4]}
10. Nc3 {[%clk 0:02:47.3]} 10... Rc8 {[%clk 0:02:58.1]} 11. cxd5 {[%clk
0:02:47.2]} 11... Nxd5 {[%clk 0:02:54.1]} 12. Nxd5 {[%clk 0:02:46.8]} 12... Bxd5
{[%clk 0:02:53.8]} 13. dxc5 {[%clk 0:02:46.4]} 13... Nxc5 {[%clk 0:02:49.1]} 14.
Rc1 {[%clk 0:02:42.9]} 14... Bf6 {[%clk 0:02:47.7]} 15. Nd4 {[%clk 0:02:40.4]}
15... Bxg2 {[%clk 0:02:45.3]} 16. Kxg2 {[%clk 0:02:41.3]} 16... Qd5+ {[%clk
0:02:38]} 17. Qf3 {[%clk 0:02:38.4]} 17... Qxf3+ {[%clk 0:02:31.9]} 18. Kxf3
{[%clk 0:02:39.3]} 18... e5 {[%clk 0:02:24.3]} 19. b4 {[%clk 0:02:18.5]} 19...
Nd3 {[%clk 0:01:56.5]} 20. Rxc8 {[%clk 0:02:15.4]} 20... Rxc8 {[%clk 0:01:53.9]}
21. Nb5 {[%clk 0:02:10.3]} 21... Nxb2 {[%clk 0:01:43.9]} 22. Nxa7 {[%clk
0:02:09.8]} 22... Rc2 {[%clk 0:01:30.5]} 23. Nb5 {[%clk 0:02:00.9]} 23... g6
{[%clk 0:01:20.1]} 24. h4 {[%clk 0:01:58.4]} 24... h5 {[%clk 0:01:19.1]} 25. Nd6
{[%clk 0:01:56.4]} 25... Be7 {[%clk 0:00:58.9]} 26. Ne4 {[%clk 0:01:48.2]} 26...
Bxb4 {[%clk 0:00:49.9]} 27. Nf6+ {[%clk 0:01:46.3]} 27... Kg7 {[%clk 0:00:45.1]}
28. Nd7 {[%clk 0:01:46.4]} 28... Nd3 {[%clk 0:00:34.7]} 29. a4 {[%clk 0:01:33]}
29... Ba5 {[%clk 0:00:20.6]} 30. Ke4 {[%clk 0:01:21.2]} 30... Nxf2+ {[%clk
0:00:18.8]} 31. Kxe5 {[%clk 0:01:20.5]} 31... Ng4+ {[%clk 0:00:18.5]} 32. Ke4
{[%clk 0:01:17.4]} 32... Rc4+ {[%clk 0:00:18]} 33. Kd3 {[%clk 0:01:14.2]} 33...
Rxa4 {[%clk 0:00:17.5]} 34. e4 {[%clk 0:01:08.2]} 34... Ra3+ {[%clk 0:00:17.2]}
35. Ke2 {[%clk 0:01:04.6]} 35... Re3+ {[%clk 0:00:14.9]} 36. Kd1 {[%clk
0:01:03.6]} 36... Rd3+ {[%clk 0:00:14.3]} 37. Ke2 {[%clk 0:01:02.3]} 37... Rxd7
{[%clk 0:00:14.4]} 38. Rf4 {[%clk 0:01:03.2]} 38... Rd2+ {[%clk 0:00:13.8]} 39.
Kf1 {[%clk 0:01:01.2]} 39... Rf2+ {[%clk 0:00:13.4]} 40. Rxf2 {[%clk 0:01:01]}
40... Nxf2 {[%clk 0:00:14.1]} 41. Kxf2 {[%clk 0:01:01.9]} 41... Kf6 {[%clk
0:00:14.6]} 42. Kf3 {[%clk 0:01:02.8]} 42... Ke5 {[%clk 0:00:15.2]} 43. Ke3
{[%clk 0:01:03.4]} 43... b5 {[%clk 0:00:15.1]} 44. Kd3 {[%clk 0:01:04.3]} 44...
Bb6 {[%clk 0:00:15.3]} 45. Kc3 {[%clk 0:01:03.4]} 45... Bc5 {[%clk 0:00:15.7]}
46. Kb3 {[%clk 0:01:03.2]} 46... Kxe4 {[%clk 0:00:15.6]} 47. Kc3 {[%clk
0:01:04.1]} 47... Kf3 {[%clk 0:00:15.7]} 48. g4 {[%clk 0:01:05]} 48... Kxg4
{[%clk 0:00:15.9]} 49. Kd3 {[%clk 0:01:05.1]} 49... Kxh4 {[%clk 0:00:16.2]} 50.
Ke2 {[%clk 0:01:06]} 50... Kg4 {[%clk 0:00:16.3]} 51. Kf1 {[%clk 0:01:06.9]}
51... h4 {[%clk 0:00:16.9]} 52. Kg2 {[%clk 0:01:07.3]} 52... b4 {[%clk
0:00:17.8]} 53. Kh2 {[%clk 0:01:07.3]} 53... b3 {[%clk 0:00:18.4]} 54. Kg2
{[%clk 0:01:08.2]} 54... b2 {[%clk 0:00:18.6]} 55. Kf1 {[%clk 0:01:09.1]} 55...
b1=Q+ {[%clk 0:00:18.7]} 56. Ke2 {[%clk 0:01:10]} 56... Qc2+ {[%clk 0:00:18.7]}
57. Ke1 {[%clk 0:01:08.9]} 57... Kf3 {[%clk 0:00:17.4]} 58. Kf1 {[%clk
0:01:08.2]} 58... Qf2# {[%clk 0:00:18.1]} 0-1

[Event "Late-Titled-Tuesday-Blitz-April-23-2024"]
[Site "Chess.com"]
[Date "2024.04.23"]
[Round "3"]
[White "RebecaJimnz"]
[Black "ozates"]
[Result "1-0"]
[WhiteElo "2290"]
[BlackElo "2549"]
[TimeControl "180+1"]
[EndTime "14:29:25 PDT"]
[Termination "RebecaJimnz won by resignation"]

1. d4 {[%clk 0:03:00.9]} 1... Nf6 {[%clk 0:02:59.5]} 2. Nf3 {[%clk 0:03:00.6]}
2... g6 {[%clk 0:02:56.3]} 3. Nc3 {[%clk 0:02:59.8]} 3... Bg7 {[%clk 0:02:55.8]}
4. e4 {[%clk 0:02:59.8]} 4... d6 {[%clk 0:02:55]} 5. Bc4 {[%clk 0:03:00.3]} 5...
O-O {[%clk 0:02:54.3]} 6. O-O {[%clk 0:03:00.3]} 6... Nxe4 {[%clk 0:02:54.7]} 7.
Nxe4 {[%clk 0:02:59.3]} 7... d5 {[%clk 0:02:54.5]} 8. Bd3 {[%clk 0:03:00]} 8...
dxe4 {[%clk 0:02:53.6]} 9. Bxe4 {[%clk 0:03:00.9]} 9... c6 {[%clk 0:02:52.6]}
10. c3 {[%clk 0:02:59.2]} 10... Nd7 {[%clk 0:02:52.4]} 11. Re1 {[%clk
0:02:55.6]} 11... Nf6 {[%clk 0:02:50.2]} 12. Bd3 {[%clk 0:02:54.6]} 12... Be6
{[%clk 0:02:47.7]} 13. Bg5 {[%clk 0:02:48.5]} 13... Qb6 {[%clk 0:02:42.7]} 14.
Qc2 {[%clk 0:02:44.8]} 14... Rac8 {[%clk 0:02:40.8]} 15. h3 {[%clk 0:02:39.7]}
15... c5 {[%clk 0:02:38.7]} 16. dxc5 {[%clk 0:02:38]} 16... Qxc5 {[%clk
0:02:37.1]} 17. Be3 {[%clk 0:02:38.4]} 17... Qa5 {[%clk 0:02:36]} 18. Nd4 {[%clk
0:02:32.5]} 18... Bc4 {[%clk 0:02:29.3]} 19. Bxc4 {[%clk 0:02:27.3]} 19... Rxc4
{[%clk 0:02:30.2]} 20. Nb3 {[%clk 0:02:27.6]} 20... Qa4 {[%clk 0:02:28.2]} 21.
Bd4 {[%clk 0:02:25.7]} 21... e6 {[%clk 0:02:23.9]} 22. Qe2 {[%clk 0:02:21.7]}
22... b6 {[%clk 0:02:11.9]} 23. Qf3 {[%clk 0:01:39.4]} 23... Qc6 {[%clk
0:02:05.9]} 24. Qe2 {[%clk 0:01:24.6]} 24... Nd5 {[%clk 0:01:57.5]} 25. Bxg7
{[%clk 0:01:05.5]} 25... Kxg7 {[%clk 0:01:57.1]} 26. Nd4 {[%clk 0:01:05]} 26...
Qc7 {[%clk 0:01:48.1]} 27. Rad1 {[%clk 0:01:00.1]} 27... a6 {[%clk 0:01:44.4]}
28. g3 {[%clk 0:00:49.3]} 28... b5 {[%clk 0:01:31.8]} 29. a3 {[%clk 0:00:47.5]}
29... Rb8 {[%clk 0:01:26.9]} 30. h4 {[%clk 0:00:47.4]} 30... h5 {[%clk 0:01:22]}
31. Nf3 {[%clk 0:00:45.5]} 31... a5 {[%clk 0:01:15.4]} 32. Ne5 {[%clk
0:00:45.5]} 32... Rc5 {[%clk 0:01:05]} 33. Qe4 {[%clk 0:00:32]} 33... b4 {[%clk
0:00:58.9]} 34. axb4 {[%clk 0:00:32.9]} 34... axb4 {[%clk 0:00:59.6]} 35. c4
{[%clk 0:00:33.2]} 35... Nf6 {[%clk 0:00:56.4]} 36. Qf4 {[%clk 0:00:29.2]} 36...
Ng4 {[%clk 0:00:48.2]} 37. Rd7 {[%clk 0:00:27.1]} 37... Qxd7 {[%clk 0:00:09.6]}
38. Nxd7 {[%clk 0:00:28]} 38... Rbc8 {[%clk 0:00:09.5]} 39. Nxc5 {[%clk
0:00:27.3]} 39... Rxc5 {[%clk 0:00:10.4]} 40. Qd4+ {[%clk 0:00:27]} 1-0

[Event "Late-Titled-Tuesday-Blitz-April-23-2024"]
[Site "Chess.com"]
[Date "2024.04.23"]
[Round "3"]
[White "Abund"]
[Black "GMBenjaminBok"]
[Result "0-1"]
[WhiteElo "2774"]
[BlackElo "3046"]
[TimeControl "180+1"]
[EndTime "14:29:28 PDT"]
[Termination "GMBenjaminBok won by resignation"]

1. e4 {[%clk 0:03:00.9]} 1... c5 {[%clk 0:03:00]} 2. Nf3 {[%clk 0:03:01.6]} 2...
d6 {[%clk 0:03:00.6]} 3. Bb5+ {[%clk 0:03:02.3]} 3... Nd7 {[%clk 0:03:00.4]} 4.
c3 {[%clk 0:03:02.6]} 4... Nf6 {[%clk 0:03:00.3]} 5. Qe2 {[%clk 0:03:03.1]} 5...
a6 {[%clk 0:03:00.2]} 6. Ba4 {[%clk 0:03:03.7]} 6... b5 {[%clk 0:03:00.4]} 7.
Bc2 {[%clk 0:03:03.9]} 7... Bb7 {[%clk 0:03:01]} 8. d4 {[%clk 0:03:04.3]} 8...
g6 {[%clk 0:02:59.5]} 9. O-O {[%clk 0:02:59.2]} 9... Bg7 {[%clk 0:02:59.7]} 10.
Rd1 {[%clk 0:02:55.6]} 10... O-O {[%clk 0:02:52.2]} 11. e5 {[%clk 0:02:55.7]}
11... Bxf3 {[%clk 0:02:52.2]} 12. Qxf3 {[%clk 0:02:56.2]} 12... dxe5 {[%clk
0:02:49.5]} 13. dxc5 {[%clk 0:02:56.6]} 13... Qc7 {[%clk 0:02:43.8]} 14. b4
{[%clk 0:02:48.7]} 14... a5 {[%clk 0:02:22.5]} 15. a4 {[%clk 0:02:46.8]} 15...
axb4 {[%clk 0:01:54.1]} 16. cxb4 {[%clk 0:02:42.6]} 16... e4 {[%clk 0:01:10.3]}
17. Qg3 {[%clk 0:02:41.2]} 17... Ne5 {[%clk 0:01:09.1]} 18. Bb2 {[%clk
0:02:05.2]} 18... Nh5 {[%clk 0:01:04.1]} 19. Qb3 {[%clk 0:01:36.7]} 19... bxa4
{[%clk 0:00:58.6]} 20. Qa2 {[%clk 0:01:30.2]} 20... Ng4 {[%clk 0:00:49.6]} 21.
g3 {[%clk 0:01:29.4]} 21... e3 {[%clk 0:00:46]} 22. f3 {[%clk 0:01:11]} 22...
Nf2 {[%clk 0:00:36.8]} 23. Re1 {[%clk 0:01:00]} 23... Nxg3 {[%clk 0:00:33.9]}
24. Bxg7 {[%clk 0:00:44.8]} 24... Kxg7 {[%clk 0:00:34]} 25. Rxe3 {[%clk
0:00:40.7]} 25... Nh3+ {[%clk 0:00:30]} 26. Kg2 {[%clk 0:00:39.8]} 26... Nf4+
{[%clk 0:00:26.6]} 27. Kf2 {[%clk 0:00:30.2]} 27... Nf5 {[%clk 0:00:24.4]} 28.
Qb2+ {[%clk 0:00:26.1]} 28... f6 {[%clk 0:00:23.5]} 29. Re4 {[%clk 0:00:23.7]}
29... Nd3+ {[%clk 0:00:22.6]} 30. Bxd3 {[%clk 0:00:16.9]} 30... Qxh2+ {[%clk
0:00:20.4]} 31. Ke1 {[%clk 0:00:17.1]} 31... Qxb2 {[%clk 0:00:20.2]} 32. Ra3
{[%clk 0:00:17.8]} 32... Rfd8 {[%clk 0:00:18.9]} 33. Re2 {[%clk 0:00:17.6]}
33... Qc1+ {[%clk 0:00:18.5]} 34. Kf2 {[%clk 0:00:17.6]} 34... Rxd3 {[%clk
0:00:18.5]} 35. Rxd3 {[%clk 0:00:18.2]} 35... Qxb1 {[%clk 0:00:19.1]} 36. Rc3
{[%clk 0:00:15.3]} 36... a3 {[%clk 0:00:19.1]} 37. c6 {[%clk 0:00:11.6]} 37...
a2 {[%clk 0:00:19.1]} 38. Re1 {[%clk 0:00:11.8]} 38... Qb2+ {[%clk 0:00:18.7]}
0-1